{"text_format":"1","workbook":"xlsx","n_sheets":5,"sheets":["факт 2018 (7)","факт 3кв.2018 (6)","факт 2кв.2018 (5)","факт 1кв.2018 (4)","Лист3"],"not_rendered":{"charts":0,"images":0,"macros":0,"external_links":0,"defined_names":0,"comments":0,"pivot_tables":0},"unopened":[],"bounds":{"document_bytes":16777216,"sheet_cells":100000,"rows_first":2000,"rows_last":500,"rows_between":2000,"halvings":0,"cell_chars":16384,"cell_head_chars":4096},"cells_cut":0,"cells_raw":0,"read":"whole","date_system":"1900"}

{"sheet":"факт 2018 (7)","index":0,"n_rows":34,"n_cols":12,"rows_kept":34,"cut":false,"hidden":false,"merged":[[1,0,1,8],[3,0,5,0],[3,1,5,1],[3,2,5,2],[3,3,5,3],[3,4,5,4],[3,5,4,8],[3,9,5,9],[3,10,5,10],[3,11,5,11],[21,0,23,0],[21,1,23,1],[21,2,23,2],[21,3,23,3],[21,4,23,4],[21,5,22,8],[21,9,23,9],[21,10,23,10],[21,11,23,11],[25,5,25,8],[28,5,28,8],[29,0,29,1]]}
[]
["Прогнозные (целевые) значения основных ключевых показателей эффективности за  2018 г. "]
[]
["№","Показатель","Удельный вес","Формула расчета","Прогнозное (целевое) значение за год","в т.ч.",null,null,null,"факт за год","Процен тиспонения ИКЭ","Удельный вес"]
[]
[null,null,null,null,null,"1 квартал","2 квартал","3 квартал","4 квартал"]
[1,2,3,4,5,6,7,8,9]
[1,"Рентабельность активов",0.1,"Прибыль до уплаты налога на прибыль / Средняя стоимость активов",1.7500000000000002E-2,null,null,null,null,3.7000000000000002E-3,{"$f":"J8/E8*100","v":21.142857142857142},{"$f":"K8*C8/100","v":2.1142857142857144E-2}]
[2,"Коэффициент абсолютной ликвидности",0.1,"Денежные средства/Текущие обязательства",0.2,null,null,null,null,8.0000000000000004E-4,0.4,4.0000000000000007E-4]
[3,"Коэффициент финансовой независимости",0.1,"Источники собственных средств /(Обязательства – Долгосрочные обязательства)",0.5655,null,null,null,null,1.6660999999999999,294.62422634836429,0.29462422634836427]
[4,"Оборачиваемость кредиторской задолженности в днях",0.15,"Количество календарных дней в периоде/(Чистая выручка от реализации/Среднее значение кредиторской задолженности)",90,null,null,null,null,40,{"$f":"E11/J11*100","v":225},0.33750000000000002]
[5,"Оборачиваемость дебиторской задолженности в днях",0.15,"Количество календарных дней в периоде/(Чистая выручка от реализации/Среднее значение дебиторской задолженности)",90,null,null,null,null,68,{"$f":"E12/J12*100","v":132.35294117647058},0.19852941176470587]
[6,"Коэффициент покрытия (платежеспособности)",0.2,"Текущие активы/ (Обязательства – Долгосрочные обязательства)",1.2930999999999999,null,null,null,null,1.6687000000000001,{"$f":"+J13/E13*100","v":129.04647745727323},0.25809295491454648]
[7," Дивидендный выход",0.1,"Дв = Дао / ЕPS, где:Дао — начисленный дивиденд на одну простую акцию (на основании документов бухгалтерского учета);\nЕPS — доход на акцию, определяется по формуле:EPS = (Чп – ДИВприв) / Као, где:Чп — чистая прибыль отчетного периода, (строка 270 «Чистая прибыль (убыток) отчетного периода», графа 5 «Доходы (прибыль)», форма № 2 «Отчет о финансовых результатах»;\nДИВприв — начисленные дивиденды по привилегированным акциям (на основании документов бухгалтерского учета);\nКао — общее число размещенных простых акций (строка 152 «простые», графа 9 «Итого» формы № 5 «Отчет о собственном капитале»).\n",0,null,null,null,null,null,null,0]
[null,"Всего:",1,null,null,null,null,null,null,null,null,{"$f":"SUM(L8:L14)","v":1.1102894501704739}]
[]
[null,"Генеральный директор АО \"4-sonli montaj boshqarmasi\"                      "]
[null,"Начальник ПЭО"]
[]
["Прогнозные (целевые) значения дополнительных ключевых показателей эффективности за 1кв. 2017 г. "]
[]
["№","Показатель","Удельный вес","Формула расчета","Прогнозное (целевое) значение в целом за год","В т.ч.",null,null,null,"факт за 1кв.2017","Процен тиспонения ИКЭ","Удельный вес"]
[]
[null,null,null,null,null,"1 квартал","2 квартал","3 квартал","4 квартал"]
[1,2,3,4,5,6,7,8,9]
[1,"Коэффициент износа основных средств",0.25,"износ основных средств/ первоначальная стоимость основных средств",0.5,"Рассчитывается только годовое значение",null,null,null,null,{"$f":"J26/E26*100","v":0},{"$f":"K26*C26/100","v":0}]
[2,"Коэффициент обновления основных средств",0.25,"Балансовая стоимость поступивших за период основных средств/Балансовая стоимость всех основных средств на конец периода",0.1,null,null,null,null,null,0,0]
[3,"Производительность труда",0.25,"Чистая выручка от реализации/Среднесписочная численность сотрудников",350988,null,null,null,null,null,0,0]
[4,"Фондоотдача ",0.25,"Чистая выручка от реализации/Средняя стоимость основных средств за период ",10,"Рассчитывается только годовое значение",null,null,null,null,0,0]
["Всего:",null,100,null,null,null,null,null,null,null,null,{"$f":"SUM(L26:L29)","v":0}]
[]
[]
[null,"Руководитель"]
[null,"Экономист"]

{"sheet":"факт 3кв.2018 (6)","index":1,"n_rows":34,"n_cols":12,"rows_kept":34,"cut":false,"hidden":false,"merged":[[1,0,1,8],[3,0,5,0],[3,1,5,1],[3,2,5,2],[3,3,5,3],[3,4,5,4],[3,5,4,8],[3,9,5,9],[3,10,5,10],[3,11,5,11],[21,0,23,0],[21,1,23,1],[21,2,23,2],[21,3,23,3],[21,4,23,4],[21,5,22,8],[21,9,23,9],[21,10,23,10],[21,11,23,11],[25,5,25,8],[28,5,28,8],[29,0,29,1]]}
[]
["Прогнозные (целевые) значения основных ключевых показателей эффективности за 3 кв. 2018 г. "]
[]
["№","Показатель","Удельный вес","Формула расчета","Прогнозное (целевое) значение за год","в т.ч.",null,null,null,"факт за год","Процен тиспонения ИКЭ","Удельный вес"]
[]
[null,null,null,null,null,"1 квартал","2 квартал","3 квартал","4 квартал"]
[1,2,3,4,5,6,7,8,9]
[1,"Рентабельность активов",0.1,"Прибыль до уплаты налога на прибыль / Средняя стоимость активов",1.7500000000000002E-2,null,null,null,null,1.3299999999999999E-2,{"$f":"J8/E8*100","v":75.999999999999986},{"$f":"K8*C8/100","v":7.5999999999999984E-2}]
[2,"Коэффициент абсолютной ликвидности",0.1,"Денежные средства/Текущие обязательства",0.2,null,null,null,null,8.949E-2,44.744999999999997,4.4745E-2]
[3,"Коэффициент финансовой независимости",0.1,"Источники собственных средств /(Обязательства – Долгосрочные обязательства)",0.5655,null,null,null,null,0.84199999999999997,148.89478337754198,0.14889478337754197]
[4,"Оборачиваемость кредиторской задолженности в днях",0.15,"Количество календарных дней в периоде/(Чистая выручка от реализации/Среднее значение кредиторской задолженности)",90,null,null,null,null,59,{"$f":"E11/J11*100","v":152.54237288135593},0.22881355932203387]
[5,"Оборачиваемость дебиторской задолженности в днях",0.15,"Количество календарных дней в периоде/(Чистая выручка от реализации/Среднее значение дебиторской задолженности)",90,null,null,null,null,105,{"$f":"E12/J12*100","v":85.714285714285708},0.12857142857142856]
[6,"Коэффициент покрытия (платежеспособности)",0.2,"Текущие активы/ (Обязательства – Долгосрочные обязательства)",1.2930999999999999,null,null,null,null,1.6592,{"$f":"+J13/E13*100","v":128.31180883149023},0.25662361766298047]
[7," Дивидендный выход",0.1,"Дв = Дао / ЕPS, где:Дао — начисленный дивиденд на одну простую акцию (на основании документов бухгалтерского учета);\nЕPS — доход на акцию, определяется по формуле:EPS = (Чп – ДИВприв) / Као, где:Чп — чистая прибыль отчетного периода, (строка 270 «Чистая прибыль (убыток) отчетного периода», графа 5 «Доходы (прибыль)», форма № 2 «Отчет о финансовых результатах»;\nДИВприв — начисленные дивиденды по привилегированным акциям (на основании документов бухгалтерского учета);\nКао — общее число размещенных простых акций (строка 152 «простые», графа 9 «Итого» формы № 5 «Отчет о собственном капитале»).\n",0,null,null,null,null,null,null,0]
[null,"Всего:",1,null,null,null,null,null,null,null,null,{"$f":"SUM(L8:L14)","v":0.8836483889339849}]
[]
[null,"Генеральный директор АО \"4-sonli montaj boshqarmasi\"                      "]
[null,"Начальник ПЭО"]
[]
["Прогнозные (целевые) значения дополнительных ключевых показателей эффективности за 1кв. 2017 г. "]
[]
["№","Показатель","Удельный вес","Формула расчета","Прогнозное (целевое) значение в целом за год","В т.ч.",null,null,null,"факт за 1кв.2017","Процен тиспонения ИКЭ","Удельный вес"]
[]
[null,null,null,null,null,"1 квартал","2 квартал","3 квартал","4 квартал"]
[1,2,3,4,5,6,7,8,9]
[1,"Коэффициент износа основных средств",0.25,"износ основных средств/ первоначальная стоимость основных средств",0.5,"Рассчитывается только годовое значение",null,null,null,null,{"$f":"J26/E26*100","v":0},{"$f":"K26*C26/100","v":0}]
[2,"Коэффициент обновления основных средств",0.25,"Балансовая стоимость поступивших за период основных средств/Балансовая стоимость всех основных средств на конец периода",0.1,null,null,null,null,null,0,0]
[3,"Производительность труда",0.25,"Чистая выручка от реализации/Среднесписочная численность сотрудников",350988,null,null,null,null,null,0,0]
[4,"Фондоотдача ",0.25,"Чистая выручка от реализации/Средняя стоимость основных средств за период ",10,"Рассчитывается только годовое значение",null,null,null,null,0,0]
["Всего:",null,100,null,null,null,null,null,null,null,null,{"$f":"SUM(L26:L29)","v":0}]
[]
[]
[null,"Руководитель"]
[null,"Экономист"]

{"sheet":"факт 2кв.2018 (5)","index":2,"n_rows":34,"n_cols":12,"rows_kept":34,"cut":false,"hidden":false,"merged":[[1,0,1,8],[3,0,5,0],[3,1,5,1],[3,2,5,2],[3,3,5,3],[3,4,5,4],[3,5,4,8],[3,9,5,9],[3,10,5,10],[3,11,5,11],[21,0,23,0],[21,1,23,1],[21,2,23,2],[21,3,23,3],[21,4,23,4],[21,5,22,8],[21,9,23,9],[21,10,23,10],[21,11,23,11],[25,5,25,8],[28,5,28,8],[29,0,29,1]]}
[]
["Прогнозные (целевые) значения основных ключевых показателей эффективности за 2 кв. 2018 г. "]
[]
["№","Показатель","Удельный вес","Формула расчета","Прогнозное (целевое) значение за год","в т.ч.",null,null,null,"факт за год","Процен тиспонения ИКЭ","Удельный вес"]
[]
[null,null,null,null,null,"1 квартал","2 квартал","3 квартал","4 квартал"]
[1,2,3,4,5,6,7,8,9]
[1,"Рентабельность активов",0.1,"Прибыль до уплаты налога на прибыль / Средняя стоимость активов",1.7500000000000002E-2,null,null,null,null,2.2000000000000001E-3,{"$f":"J8/E8*100","v":12.571428571428573},{"$f":"K8*C8/100","v":1.2571428571428574E-2}]
[2,"Коэффициент абсолютной ликвидности",0.1,"Денежные средства/Текущие обязательства",0.2,null,null,null,null,2.3720000000000001E-2,11.86,{"$f":"K9*C9/100","v":1.1859999999999999E-2}]
[3,"Коэффициент финансовой независимости",0.1,"Источники собственных средств /(Обязательства – Долгосрочные обязательства)",0.5655,null,null,null,null,0.84199999999999997,148.89478337754198,0.14889478337754197]
[4,"Оборачиваемость кредиторской задолженности в днях",0.15,"Количество календарных дней в периоде/(Чистая выручка от реализации/Среднее значение кредиторской задолженности)",90,null,null,null,null,105,{"$f":"E11/J11*100","v":85.714285714285708},0.12857142857142856]
[5,"Оборачиваемость дебиторской задолженности в днях",0.15,"Количество календарных дней в периоде/(Чистая выручка от реализации/Среднее значение дебиторской задолженности)",90,null,null,null,null,197,{"$f":"E12/J12*100","v":45.685279187817258},6.8527918781725886E-2]
[6,"Коэффициент покрытия (платежеспособности)",0.2,"Текущие активы/ (Обязательства – Долгосрочные обязательства)",1.2930999999999999,null,null,null,null,1.6322000000000001,{"$f":"+J13/E13*100","v":126.22380326347538},0.25244760652695075]
[7," Дивидендный выход",0.1,"Дв = Дао / ЕPS, где:Дао — начисленный дивиденд на одну простую акцию (на основании документов бухгалтерского учета);\nЕPS — доход на акцию, определяется по формуле:EPS = (Чп – ДИВприв) / Као, где:Чп — чистая прибыль отчетного периода, (строка 270 «Чистая прибыль (убыток) отчетного периода», графа 5 «Доходы (прибыль)», форма № 2 «Отчет о финансовых результатах»;\nДИВприв — начисленные дивиденды по привилегированным акциям (на основании документов бухгалтерского учета);\nКао — общее число размещенных простых акций (строка 152 «простые», графа 9 «Итого» формы № 5 «Отчет о собственном капитале»).\n",0,null,null,null,null,null,null,0]
[null,"Всего:",1,null,null,null,null,null,null,null,null,{"$f":"SUM(L8:L14)","v":0.62287316582907581}]
[]
[null,"Генеральный директор АО \"4-sonli montaj boshqarmasi\"                      "]
[null,"Начальник ПЭО"]
[]
["Прогнозные (целевые) значения дополнительных ключевых показателей эффективности за 1кв. 2017 г. "]
[]
["№","Показатель","Удельный вес","Формула расчета","Прогнозное (целевое) значение в целом за год","В т.ч.",null,null,null,"факт за 1кв.2017","Процен тиспонения ИКЭ","Удельный вес"]
[]
[null,null,null,null,null,"1 квартал","2 квартал","3 квартал","4 квартал"]
[1,2,3,4,5,6,7,8,9]
[1,"Коэффициент износа основных средств",0.25,"износ основных средств/ первоначальная стоимость основных средств",0.5,"Рассчитывается только годовое значение",null,null,null,null,{"$f":"J26/E26*100","v":0},{"$f":"K26*C26/100","v":0}]
[2,"Коэффициент обновления основных средств",0.25,"Балансовая стоимость поступивших за период основных средств/Балансовая стоимость всех основных средств на конец периода",0.1,null,null,null,null,null,0,0]
[3,"Производительность труда",0.25,"Чистая выручка от реализации/Среднесписочная численность сотрудников",350988,null,null,null,null,null,0,0]
[4,"Фондоотдача ",0.25,"Чистая выручка от реализации/Средняя стоимость основных средств за период ",10,"Рассчитывается только годовое значение",null,null,null,null,0,0]
["Всего:",null,100,null,null,null,null,null,null,null,null,{"$f":"SUM(L26:L29)","v":0}]
[]
[]
[null,"Руководитель"]
[null,"Экономист"]

{"sheet":"факт 1кв.2018 (4)","index":3,"n_rows":34,"n_cols":12,"rows_kept":34,"cut":false,"hidden":false,"merged":[[1,0,1,8],[3,0,5,0],[3,1,5,1],[3,2,5,2],[3,3,5,3],[3,4,5,4],[3,5,4,8],[3,9,5,9],[3,10,5,10],[3,11,5,11],[21,0,23,0],[21,1,23,1],[21,2,23,2],[21,3,23,3],[21,4,23,4],[21,5,22,8],[21,9,23,9],[21,10,23,10],[21,11,23,11],[25,5,25,8],[28,5,28,8],[29,0,29,1]]}
[]
["Прогнозные (целевые) значения основных ключевых показателей эффективности за 1 кв. 2018 г. "]
[]
["№","Показатель","Удельный вес","Формула расчета","Прогнозное (целевое) значение за год","в т.ч.",null,null,null,"факт за год","Процен тиспонения ИКЭ","Удельный вес"]
[]
[null,null,null,null,null,"1 квартал","2 квартал","3 квартал","4 квартал"]
[1,2,3,4,5,6,7,8,9]
[1,"Рентабельность активов",0.1,"Прибыль до уплаты налога на прибыль / Средняя стоимость активов",1.7500000000000002E-2,null,null,null,null,2.9999999999999997E-4,{"$f":"J8/E8*100","v":1.714285714285714},{"$f":"K8*C8/100","v":1.714285714285714E-3}]
[2,"Коэффициент абсолютной ликвидности",0.1,"Денежные средства/Текущие обязательства",0.2,null,null,null,null,1.4999999999999999E-2,7.5,{"$f":"K9*C9/100","v":7.4999999999999997E-3}]
[3,"Коэффициент финансовой независимости",0.1,"Источники собственных средств /(Обязательства – Долгосрочные обязательства)",0.5655,null,null,null,null,0.878,155.26083112290007,{"$f":"K10*C10/100","v":0.15526083112290009}]
[4,"Оборачиваемость кредиторской задолженности в днях",0.15,"Количество календарных дней в периоде/(Чистая выручка от реализации/Среднее значение кредиторской задолженности)",90,null,null,null,null,372,{"$f":"E11/J11*100","v":24.193548387096776},3.6290322580645157E-2]
[5,"Оборачиваемость дебиторской задолженности в днях",0.15,"Количество календарных дней в периоде/(Чистая выручка от реализации/Среднее значение дебиторской задолженности)",90,null,null,null,null,482,{"$f":"E12/J12*100","v":18.672199170124482},2.8008298755186723E-2]
[6,"Коэффициент покрытия (платежеспособности)",0.2,"Текущие активы/ (Обязательства – Долгосрочные обязательства)",1.2930999999999999,null,null,null,null,1.6394,{"$f":"+J13/E13*100","v":126.78060474827933},0.25356120949655869]
[7," Дивидендный выход",0.1,"Дв = Дао / ЕPS, где:Дао — начисленный дивиденд на одну простую акцию (на основании документов бухгалтерского учета);\nЕPS — доход на акцию, определяется по формуле:EPS = (Чп – ДИВприв) / Као, где:Чп — чистая прибыль отчетного периода, (строка 270 «Чистая прибыль (убыток) отчетного периода», графа 5 «Доходы (прибыль)», форма № 2 «Отчет о финансовых результатах»;\nДИВприв — начисленные дивиденды по привилегированным акциям (на основании документов бухгалтерского учета);\nКао — общее число размещенных простых акций (строка 152 «простые», графа 9 «Итого» формы № 5 «Отчет о собственном капитале»).\n",0,null,null,null,null,null,null,0]
[null,"Всего:",1,null,null,null,null,null,null,null,null,{"$f":"SUM(L8:L14)","v":0.48233494766957641}]
[]
[null,"Генеральный директор АО \"4-sonli montaj boshqarmasi\"                      "]
[null,"Начальник ПЭО"]
[]
["Прогнозные (целевые) значения дополнительных ключевых показателей эффективности за 1кв. 2017 г. "]
[]
["№","Показатель","Удельный вес","Формула расчета","Прогнозное (целевое) значение в целом за год","В т.ч.",null,null,null,"факт за 1кв.2017","Процен тиспонения ИКЭ","Удельный вес"]
[]
[null,null,null,null,null,"1 квартал","2 квартал","3 квартал","4 квартал"]
[1,2,3,4,5,6,7,8,9]
[1,"Коэффициент износа основных средств",0.25,"износ основных средств/ первоначальная стоимость основных средств",0.5,"Рассчитывается только годовое значение",null,null,null,null,{"$f":"J26/E26*100","v":0},{"$f":"K26*C26/100","v":0}]
[2,"Коэффициент обновления основных средств",0.25,"Балансовая стоимость поступивших за период основных средств/Балансовая стоимость всех основных средств на конец периода",0.1,null,null,null,null,null,0,0]
[3,"Производительность труда",0.25,"Чистая выручка от реализации/Среднесписочная численность сотрудников",350988,null,null,null,null,null,0,0]
[4,"Фондоотдача ",0.25,"Чистая выручка от реализации/Средняя стоимость основных средств за период ",10,"Рассчитывается только годовое значение",null,null,null,null,0,0]
["Всего:",null,100,null,null,null,null,null,null,null,null,{"$f":"SUM(L26:L29)","v":0}]
[]
[]
[null,"Руководитель"]
[null,"Экономист"]

{"sheet":"Лист3","index":4,"n_rows":0,"n_cols":0,"rows_kept":0,"cut":false,"hidden":false,"merged":[]}